bitfinex/quotes_SOLUSD_20250710
["timestamp","ask_amount","ask_price","bid_price","bid_amount"]
[1752136682239,6.49621997,158.88,158.87,1.45124444]
[1752136682440,10.14935627,158.88,158.87,1.45124444]
[1752136683351,10.14935627,158.88,158.87,0.03]
[1752136683531,10.14935627,158.88,158.87,1.45124444]
[1752136684366,0.06,158.88,158.87,1.45124444]
[1752136684534,0.06,158.88,158.87,11.39883532]
[1752136684733,0.06,158.88,158.87,1.45124444]
[1752136690158,0.06,158.88,158.87,7.74569902]
[1752136690351,0.06,158.88,158.87,11.39883532]
[1752136690760,0.06,158.88,158.87,1.45124444]
[1752136691057,0.06,158.88,158.87,7.74569902]
[1752136692541,3.7131363,158.88,158.87,0.03]
[1752136692745,3.7131363,158.88,158.87,1.45124444]
[1752136693656,10.0071947,158.88,158.87,1.45124444]
[1752136694957,3.7131363,158.88,158.87,1.45124444]
[1752136696362,0.06,158.88,158.87,1.45124444]
[1752136696545,0.06,158.88,158.87,37.04438074]
[1752136697869,0.06,158.88,158.87,43.33883532]
[1752136698967,0.06,158.88,158.87,45.39282541]
[1752136700963,0.06,158.88,158.87,33.39124444]
[1752136703573,0.06,158.88,158.87,45.39282541]
[1752136705566,0.06,158.88,158.87,33.39124444]
[1752136707675,0.06,158.88,158.87,39.68569902]
[1752136707875,0.06,158.88,158.87,45.39282541]
[1752136708178,0.06,158.88,158.87,33.39124444]
[1752136709570,0.06,158.88,158.87,39.68569902]
[1752136709772,0.06,158.88,158.87,45.39282541]
[1752136711486,0.06,158.88,158.87,39.68569902]
[1752136711787,0.06,158.88,158.87,45.39282541]
[1752136712258,0.06,158.88,158.87,33.39124444]
[1752136712466,0.06,158.88,158.87,39.09837083]
[1752136712972,0.06,158.88,158.87,45.39282541]
[1752136713282,0.06,158.88,158.87,33.39124444]
[1752136719199,5.90928796,158.88,158.87,33.39124444]
[1752136719488,0.20216157,158.88,158.87,33.39124444]
[1752136724402,6.49621997,158.88,158.87,31.97]
[1752136724585,10.15055341,158.88,158.87,33.39124444]
[1752136724784,10.15055341,158.88,158.87,0.03]
[1752136724988,35.6911854,158.88,158.87,0.03]
[1752136726802,37.7493866,158.88,158.87,0.03]
[1752136730720,6.95098313,158.88,158.87,0.03]
[1752136730897,0.06,158.88,158.87,0.03]
[1752136731091,0.06,158.88,158.87,33.39124444]
[1752136733516,0.06,158.88,158.87,39.10377908]
[1752136733682,0.06,158.88,158.87,33.39124444]
[1752136735993,0.06,158.88,158.87,39.68569902]
[1752136736185,0.06,158.88,158.87,33.39124444]
[1752136743121,0.06,158.88,158.87,39.10377908]
[1752136743421,0.06,158.88,158.87,45.39823366]
[1752136743803,0.06,158.88,158.87,39.10377908]
[1752136747206,140.89854414,158.87,158.86,6.29469722]
[1752136747517,140.89854414,158.87,158.86,43.96723186]
[1752136748807,140.89854414,158.87,158.86,41.90837955]
[1752136749912,140.89854414,158.87,158.86,43.48977955]
[1752136750311,140.89854414,158.87,158.86,1.5814]
[1752136750612,140.89854414,158.87,158.86,37.19508233]
[1752136750816,140.89854414,158.87,158.86,33.5414]
[1752136751017,140.89854414,158.87,158.84,6.2169]
[1752136751208,140.89854414,158.87,158.83,27.6387]
[1752136751209,5.85202935,158.86,158.83,1.6387]
[1752136751415,5.85202935,158.86,158.83,31.96]
[1752136751625,5.85202935,158.86,158.82,12.00606563]
[1752136751809,0.14216157,158.86,158.83,31.98]
[1752136752815,12.14691285,158.86,158.83,31.98]
[1752136753014,0.14216157,158.84,158.82,31.98]
[1752136753231,0.14216157,158.86,158.82,37.68986778]
[1752136753802,0.14216157,158.86,158.83,5.70986778]
[1752136754003,140.89854414,158.87,158.85,5.70986778]
[1752136754423,140.89854414,158.87,158.86,5.70986778]
[1752136754815,140.89854414,158.87,158.86,37.66986778]
[1752136756133,140.89854414,158.87,158.86,31.96]
[1752136756434,140.89854414,158.87,158.85,12.00481237]
[1752136756435,140.89854414,158.87,158.85,43.96481237]
[1752136762044,140.89854414,158.87,158.85,38.25494459]
[1752136762427,140.89854414,158.87,158.85,31.96]
[1752136762845,140.89854414,158.87,158.85,43.96506554]
[1752136764637,140.89854414,158.87,158.85,43.99506554]
[1752136765021,140.95854414,158.87,158.85,43.99506554]
[1752136769543,140.95854414,158.87,158.85,31.99]
[1752136769749,5.85202935,158.86,158.85,0.03]
[1752136769934,0.14216157,158.86,158.85,6.32524708]
[1752136770248,140.95854414,158.87,158.85,6.32524708]
[1752136770774,140.95854414,158.87,158.86,5.70986778]
[1752136771252,140.95854414,158.87,158.85,6.32524708]
[1752136771451,140.95854414,158.87,158.86,5.70986778]
[1752136771628,140.95854414,158.87,158.86,12.00471859]
[1752136772951,140.95854414,158.87,158.85,12.03511486]
[1752136774130,140.95854414,158.87,158.85,6.32524708]
[1752136774328,140.95854414,158.87,158.85,12.03511486]
[1752136774835,140.95854414,158.87,158.85,6.32524708]
[1752136775042,140.95854414,158.87,158.85,12.03511486]
[1752136776643,140.95854414,158.87,158.85,6.32524708]
[1752136776845,140.95854414,158.87,158.85,12.03511486]
[1752136777453,140.95854414,158.87,158.86,5.70986778]
[1752136778133,140.95854414,158.87,158.86,37.64986778]
[1752136779240,140.95854414,158.87,158.86,43.94471859]
[1752136782266,140.95854414,158.87,158.86,76.0381968]
[1752136782267,21.94483361,158.87,158.86,76.0381968]
[1752136782564,0.1,158.94,158.9,44.64964886]
[1752136782774,0.1,158.94,158.93,5.70986778]
[1752136783069,0.1,158.94,158.93,63.66986778]
[1752136783748,0.1,158.94,158.93,31.70986778]
[1752136783945,0.1,158.94,158.93,63.66986778]
[1752136784160,0.1,158.94,158.93,31.70986778]
[1752136784450,0.1,158.94,158.93,63.68986778]
[1752136784763,0.1,158.94,158.93,69.98194605]
[1752136785469,0.1,158.94,158.93,63.68986778]
[1752136787246,0.1,158.94,158.93,57.98]
[1752136787446,0.1,158.94,158.93,63.68986778]
[1752136787667,0.1,158.94,158.93,57.98]
[1752136787855,0.1,158.94,158.93,63.68986778]
[1752136790274,0.1,158.94,158.93,69.98194605]
[1752136790659,0.1,158.94,158.93,64.27207827]
[1752136790856,0.1,158.94,158.93,69.98194605]
[1752136793071,0.1,158.94,158.93,31.70986778]
[1752136793300,0.1,158.94,158.93,63.88986778]
[1752136794460,0.1,158.94,158.93,31.70986778]
[1752136794667,0.1,158.94,158.93,63.88986778]
[1752136795959,0.1,158.94,158.93,62.83159491]
[1752136801763,0.1,159.03,158.94,18.64964886]
[1752136801965,1e-08,159.03,159.02,50.35951664]
[1752136802176,1.5916,159.11,159.05,26.0]
[1752136802498,1.5916,159.11,159.1,5.70986778]
[1752136802665,1.5916,159.11,159.1,38.32986778]
[1752136803368,1.5916,159.11,159.09,5.70986778]
[1752136803570,1.5916,159.11,159.08,11.99570013]
[1752136803758,1.5916,159.11,159.09,32.62]
[1752136804260,6.6434,159.17,159.1,32.6]
[1752136804462,6.6434,159.17,159.1,5.70986778]
[1752136804663,5.70986778,159.14,159.1,32.68]
[1752136804882,5.70986778,159.13,159.09,5.70986778]
[1752136805080,5.70986778,159.13,159.1,32.68]
[1752136805288,32.6434,159.17,159.1,32.68]
[1752136805289,6.28314317,159.16,159.1,32.68]
[1752136805471,0.14216157,159.12,159.1,32.68]
[1752136806678,0.14216157,159.13,159.1,44.67506872]
[1752136808903,5.85202935,159.13,159.1,38.96520094]
[1752136809274,5.85202935,159.13,159.1,32.68]
[1752136809985,5.85202935,159.11,159.09,32.66]
[1752136810189,5.85202935,159.11,159.06,5.70986778]
[1752136810390,5.85202935,159.11,159.07,32.64]
[1752136810584,0.14216157,159.11,159.07,38.34986778]
[1752136810885,1.658,159.12,159.09,5.70986778]
[1752136811092,1.658,159.12,159.1,32.64]
[1752136811292,1.658,159.12,159.1,38.92533771]
[1752136811793,1.658,159.12,159.07,32.64]
[1752136812116,1.658,159.12,158.9,31.48444403]
[1752136812117,31.70986778,159.08,159.04,33.44]
[1752136812285,31.70986778,159.05,159.04,33.44]
[1752136812620,5.70986778,159.05,158.98,24.35951664]
[1752136812811,1.5362,159.04,158.99,33.44]
[1752136813117,7.24606778,159.04,158.99,39.14986778]
[1752136813299,7.24606778,159.04,159.0,6.28930817]
[1752136813489,7.24606778,159.04,159.01,33.44]
[1752136814490,7.24606778,159.04,159.0,11.99917595]
[1752136814793,1.5362,159.04,159.01,33.44]
[1752136815098,7.24606778,159.04,159.01,33.44]
[1752136815891,7.24606778,159.04,159.02,33.4]
[1752136816482,1.5362,159.04,159.02,33.4]
[1752136818709,1.5362,159.04,159.03,33.36]
[1752136820615,15.7135931,159.1,159.03,33.36]
[1752136820616,7.8999,159.11,159.03,61.07822295]
[1752136820818,7.8999,159.11,159.08,5.70986778]
[1752136820994,7.8999,159.11,159.09,33.32]
[1752136821697,0.14216157,159.1,159.09,33.32]
[1752136821900,12.13738447,159.1,159.09,33.3]
[1752136822490,12.13738447,159.1,159.06,5.70986778]
[1752136822705,12.13738447,159.1,159.07,33.3]
[1752136823510,12.13738447,159.1,159.06,5.70986778]
[1752136823713,12.13738447,159.1,158.99,18.64964886]
[1752136823714,5.70986778,159.07,158.99,18.64964886]
[1752136823904,26.0,159.09,159.04,5.70986778]
[1752136823905,5.70986778,159.08,159.04,5.70986778]
[1752136824116,37.99571742,159.09,159.05,38.98986778]
[1752136825007,37.99571742,159.09,159.05,33.28]
[1752136825212,5.70986778,159.08,159.05,33.28]
[1752136826113,37.99571742,159.09,159.05,33.28]
[1752136826314,32.28584964,159.09,159.05,33.28]
[1752136826499,37.99571742,159.09,159.05,33.24]
[1752136826700,32.28584964,159.09,159.05,33.24]
[1752136827091,37.99571742,159.09,159.05,33.24]
[1752136829403,7.01326471,159.08,159.05,33.24]
[1752136829599,7.01326471,159.07,159.05,33.24]
[1752136829806,7.01326471,159.06,159.05,33.2]
[1752136830230,7.01326471,159.06,159.0,0.03]
[1752136830231,12.72313249,159.06,159.0,0.03]
[1752136830526,5.70986778,159.04,159.01,33.44]
[1752136830707,7.01650047,159.03,159.01,33.44]
[1752136831017,5.70986778,159.05,159.01,39.14986778]
[1752136831312,7.01649984,159.04,159.01,39.14986778]
[1752136831499,11.99719968,159.05,159.01,39.14986778]
[1752136831708,11.99719968,159.05,159.01,33.44]
[1752136831709,7.01814753,159.04,159.01,33.44]
[1752136831893,11.99719968,159.05,159.01,33.44]
[1752136832094,7.01814753,159.04,159.01,33.44]
[1752136832323,11.99719968,159.05,159.01,33.44]
[1752136832515,7.0202464,159.04,159.01,33.44]
[1752136833993,7.0202464,159.04,159.0,0.03]
[1752136833994,5.70986778,159.03,159.0,0.03]
[1752136834311,7.8739711,159.04,159.0,33.41]
[1752136834504,13.58383888,159.04,159.0,33.41]
[1752136836014,7.8739711,159.04,159.0,39.11986778]
[1752136836222,13.58383888,159.04,159.0,39.11986778]
[1752136836399,7.8739711,159.04,159.0,39.11986778]
[1752136836599,14.90131752,159.04,159.0,39.11986778]
[1752136837314,7.8739711,159.04,159.0,39.11986778]
[1752136839789,7.8739711,159.04,159.0,33.41]
[1752136841001,7.8739711,159.04,159.0,39.11986778]
[1752136841920,7.8739711,159.04,159.0,33.41]
[1752136844025,13.58383888,159.04,159.0,33.41]
[1752136844226,7.8739711,159.04,159.0,33.41]
[1752136844905,7.8739711,159.04,159.0,0.03]
[1752136845107,1.5859,159.04,159.0,33.29]
[1752136845308,7.03832481,159.06,159.03,5.70986778]
[1752136845517,7.03832481,159.07,159.05,5.70986778]
[1752136845698,0.14216157,159.06,159.0,0.03]
[1752136845906,5.70986778,159.04,159.0,33.27]
[1752136846127,11.99779009,159.04,159.0,33.27]
[1752136847026,6.28792231,159.04,159.0,33.27]
[1752136847215,11.99779009,159.04,159.0,33.27]
[1752136848600,11.99779009,159.04,159.0,33.25]
[1752136849416,6.28792231,159.04,159.0,33.25]
[1752136849811,11.99779009,159.04,159.0,33.25]
[1752136850018,6.28792231,159.04,159.0,38.95986778]
[1752136850310,6.28792231,159.04,159.0,38.93986778]
[1752136850516,13.32878369,159.04,159.0,38.93986778]
[1752136850906,13.32878369,159.04,159.0,5.73986778]
[1752136851130,19.03865147,159.04,159.0,33.23]
[1752136851333,11.99779009,159.04,159.0,33.23]
[1752136852516,11.99779009,159.04,159.0,38.93986778]
[1752136853008,6.28792231,159.04,159.0,38.93986778]
[1752136853524,11.99779009,159.04,159.0,33.23]
[1752136853914,27.71710598,159.04,159.0,0.03]
[1752136854711,6.28792231,159.04,159.0,0.03]
[1752136855006,11.99779009,159.04,159.0,0.03]
[1752136856521,6.28792231,159.04,159.0,0.03]
[1752136856720,13.34409358,159.04,159.0,0.03]
[1752136857608,19.05396136,159.04,159.0,0.03]
[1752136857828,11.99779009,159.04,159.0,0.03]
[1752136863642,5.70986778,159.03,159.0,0.03]
[1752136863945,6.28851716,159.02,159.0,0.03]
[1752136865245,6.42988792,159.04,159.0,0.03]
[1752136865425,12.1397557,159.04,159.0,0.03]
[1752136866028,6.42988792,159.04,159.0,0.03]
[1752136866229,12.1397557,159.04,159.0,0.03]
[1752136868145,5.70986778,159.03,159.0,0.03]
[1752136869547,6.28851716,159.02,159.0,0.03]
[1752136869852,11.99838494,159.02,159.0,0.03]
[1752136870655,5.85202935,159.01,159.0,0.03]
[1752136871618,12.14094199,159.01,159.0,0.03]
[1752136871932,0.14216157,159.0,158.95,6.6226]
[1752136872130,5.70986778,158.96,158.95,6.6226]
[1752136873236,12.00075857,158.96,158.95,6.6226]
[1752136873439,12.00075857,158.96,158.92,32.94]
[1752136873942,12.00075857,158.96,158.94,0.03]
[1752136876742,0.06,159.04,158.96,44.64964886]
[1752136876944,1e-08,159.04,159.03,24.35951664]
[1752136877144,5.70986778,159.15,159.07,26.0]
[1752136877350,5.70986778,159.15,159.11,5.70986778]
[1752136877662,5.70986778,159.12,159.09,32.88]
[1752136877957,5.70986778,159.11,159.07,32.88]
[1752136878124,5.70986778,159.11,159.07,38.58986778]
[1752136878646,11.99470992,159.12,159.07,32.88]
[1752136878841,5.70986778,159.11,159.07,32.88]
[1752136879741,11.99505022,159.11,159.07,32.88]
[1752136880330,11.99505022,159.11,159.07,38.58986778]
[1752136880549,6.28518244,159.11,159.07,38.58986778]
[1752136881153,11.99505022,159.11,159.07,38.58986778]
[1752136884959,11.99505022,159.11,159.07,32.88]
[1752136886137,5.70986778,159.1,159.06,5.70986778]
[1752136886358,5.70986778,159.1,159.06,32.82]
[1752136886662,5.70986778,159.1,159.06,38.52986778]
[1752136886853,5.70986778,159.1,159.06,32.82]
[1752136887184,5.70986778,159.09,159.06,32.82]
[1752136887355,5.70986778,159.09,159.03,6.28799218]
[1752136887356,5.70986778,159.08,159.05,32.82]
[1752136887556,5.70986778,159.09,159.05,32.82]
[1752136887754,5.70986778,159.09,159.04,5.70986778]
[1752136887951,5.70986778,159.09,159.02,24.93802857]
[1752136887952,5.70986778,159.08,159.05,32.82]
[1752136888262,5.70986778,159.09,159.05,38.52986778]
[1752136888457,21.9962544,159.12,159.05,38.52986778]
[1752136888663,5.70986778,159.09,159.05,38.52986778]
[1752136888864,21.9962544,159.12,159.05,32.82]
[1752136889176,5.70986778,159.09,159.05,32.82]
[1752136889558,11.99578982,159.09,159.05,32.82]
[1752136892076,11.99578982,159.09,159.05,38.52986778]
[1752136894564,11.99578982,159.09,159.05,32.82]
[1752136894771,11.99578982,159.09,159.05,38.52986778]
[1752136895779,12.05578982,159.09,159.05,32.82]
[1752136895978,12.05578982,159.09,159.05,38.48986778]
[1752136896872,12.05578982,159.09,159.03,5.70986778]
[1752136896873,5.70986778,159.08,159.03,5.70986778]
[1752136897065,5.70986778,159.07,159.03,32.76]
[1752136898068,11.99669422,159.07,159.03,32.76]
[1752136898575,6.28682644,159.07,159.03,32.76]
[1752136898775,11.99669422,159.07,159.03,32.76]
[1752136902665,11.99669422,159.07,159.03,32.8]
[1752136907293,0.14216157,159.08,159.03,32.8]
[1752136907489,5.70986778,159.07,159.03,38.50986778]
[1752136907870,0.14216157,159.08,159.03,38.50986778]
[1752136908075,5.70986778,159.07,159.03,38.50986778]
[1752136909393,11.99666337,159.07,159.03,38.50986778]
[1752136909983,11.99666337,159.07,159.03,32.8]
[1752136910969,11.99666337,159.07,159.03,38.50986778]
[1752136911197,12.13833945,159.08,159.04,5.70986778]
[1752136911990,6.42847167,159.08,159.04,5.70986778]
[1752136915497,6.42847167,159.08,159.03,39.08807258]
[1752136915687,12.13833945,159.08,159.04,5.70986778]
[1752136917097,6.42847167,159.08,159.04,5.70986778]
[1752136917877,6.42847167,159.08,159.03,39.08807258]
[1752136918180,12.13833945,159.08,159.04,5.70986778]
[1752136918802,6.34582137,159.09,159.05,5.70986778]
[1752136918990,6.34582137,159.09,159.06,5.70986778]
[1752136919189,6.34582137,159.09,159.05,5.70986778]
[1752136920201,0.06,159.09,159.06,32.64]
[1752136920387,5.70986778,159.07,159.02,5.70986778]
[1752136920702,5.70986778,159.07,159.03,32.66]
[1752136921411,1.6288,159.06,159.03,32.66]
[1752136921616,1.6288,159.06,159.03,44.65793749]
[1752136921974,1.6288,159.06,159.03,5.70986778]
[1752136922174,1.6288,159.06,159.03,44.63796366]
[1752136922682,1.6288,159.06,159.03,44.66796366]
[1752136923609,1.6288,159.06,159.04,5.70986778]
[1752136923905,1.6288,159.06,159.03,38.95809588]
[1752136924113,1.6288,159.06,159.04,5.70986778]
[1752136930697,1.6288,159.06,159.04,11.99759032]
[1752136930887,6.2863111,159.08,159.04,11.99759032]
[1752136932639,6.2863111,159.08,159.04,6.28772254]
[1752136932822,6.2863111,159.08,159.04,5.70986778]
[1752136933135,8.14906157,159.09,159.05,5.70986778]
[1752136933422,8.14906157,159.09,159.03,38.95797892]
[1752136933423,1.6534,159.09,159.07,5.70986778]
[1752136939912,1.6534,159.09,159.08,5.70986778]
[1752136940125,0.06,159.09,159.08,5.70986778]
[1752136940822,0.06,159.09,159.07,5.70986778]
[1752136945732,0.06,159.09,159.07,11.99630155]
[1752136947030,0.06,159.09,159.07,5.70986778]
[1752136947531,0.06,159.09,159.07,11.9963674]
[1752136948941,0.06,159.09,159.05,0.03]
[1752136949124,0.06,159.09,159.06,38.14986778]
[1752136949333,0.06,159.09,159.07,5.70986778]
[1752136950818,0.06,159.09,159.07,3.64442393]
[1752136951441,0.06,159.09,159.08,3.64442393]
[1752136951633,0.06,159.09,159.07,3.64442393]
[1752136953246,0.06,159.09,159.07,9.93089876]
[1752136958542,0.06,159.09,159.08,3.64442393]
[1752136959951,0.06,159.09,159.08,9.93056926]
[1752136961357,0.06,159.09,159.06,147.14]
[1752136961529,0.06,159.09,159.07,24.93618937]
[1752136961729,0.06,159.09,159.08,36.00442393]
[1752136962861,0.06,159.09,159.08,42.29056926]
[1752136975267,0.06,159.09,159.08,60.94021812]
[1752136977444,0.06,159.09,159.08,149.64021812]
[1752136983576,0.06,159.09,159.08,145.99579419]
[1752136983776,0.06,159.09,159.08,124.63056926]
[1752136983965,0.06,159.09,159.08,156.91056926]
[1752136985277,0.06,159.09,159.08,124.63056926]
[1752136985575,0.06,159.09,159.08,146.98]
[1752136986466,0.06,159.09,159.08,61.92442393]
[1752136987065,0.06,159.09,159.06,3.64442393]
[1752136987278,0.06,159.09,159.07,32.28]
[1752136988556,0.06,159.09,159.08,32.28]
[1752136990156,0.06,159.09,159.07,3.64442393]
[1752136990359,0.06,159.09,159.08,32.28]
[1752136996288,3.70442393,159.09,159.08,32.28]
[1752136996466,3.70442393,159.09,159.07,32.28]
[1752136998283,0.06,159.09,159.08,3.64442393]
[1752136998471,0.06,159.09,159.05,0.03]
[1752136998677,0.06,159.09,159.06,35.92442393]
[1752136999693,0.06,159.09,159.07,32.28]
[1752136999886,0.06,159.09,159.06,3.64442393]
[1752137000192,0.06,159.09,159.07,32.28]
[1752137006900,0.06,159.09,159.07,35.92442393]
[1752137007272,0.06,159.09,159.07,42.21088823]
[1752137007998,0.06,159.09,159.07,38.5664643]
[1752137008191,0.06,159.09,159.07,42.21088823]
[1752137008798,0.06,159.09,159.07,35.92442393]
[1752137013487,0.06,159.09,159.07,32.28]
[1752137013791,0.06,159.09,159.07,35.92442393]
[1752137014980,0.06,159.09,159.08,3.64442393]
[1752137016284,0.06,159.09,159.08,9.93056926]
[1752137016603,0.06,159.09,159.08,6.28614533]
[1752137016807,0.06,159.09,159.08,9.93056926]
[1752137021807,0.06,159.09,159.08,42.19056926]
[1752137023897,0.06,159.09,159.08,60.84021812]
[1752137026210,1e-08,159.09,159.08,149.54021812]
[1752137031187,1e-08,159.09,159.08,149.68237969]
[1752137031793,1.6184,159.17,159.12,18.64964886]
[1752137031995,1.6184,159.17,159.14,3.64442393]
[1752137032218,1.6184,159.17,159.15,32.24]
[1752137033010,0.1,159.2,159.15,42.16759005]
[1752137033210,0.1,159.2,159.19,29.64442393]
[1752137033545,0.1,159.2,159.19,61.88442393]
[1752137034301,0.1,159.2,159.19,58.24]
[1752137034622,0.1,159.2,159.19,61.88442393]
[1752137035402,0.1,159.2,159.19,32.24]
[1752137037194,7.99550703,159.2,159.19,32.24]
[1752137037830,7.99550703,159.2,159.18,32.24]
[1752137038033,1.7141,159.2,159.18,32.24]
[1752137039420,7.99552208,159.2,159.18,32.24]
[1752137040619,1.7141,159.2,159.18,32.24]
[1752137041326,1.7141,159.2,159.18,35.88442393]
[1752137041810,0.1,159.2,159.19,26.0]
[1752137042012,0.1,159.2,159.19,29.64442393]
[1752137042202,0.1,159.2,159.19,35.88442393]
[1752137043115,0.1,159.2,159.19,54.53407279]
[1752137043320,0.1,159.2,159.19,60.81587441]
[1752137045425,0.1,159.2,159.16,15.70746321]
[1752137045426,0.1,159.2,159.18,26.0]
[1752137045609,0.1,159.2,159.19,35.86442393]
[1752137046710,0.1,159.2,159.19,61.86442393]
[1752137046909,0.1,159.2,159.19,63.90502476]
[1752137047631,0.1,159.2,159.19,70.18682638]
[1752137047930,0.1,159.2,159.19,64.50180162]
[1752137048131,0.1,159.2,159.19,70.18682638]
[1752137048619,0.1,159.2,159.19,88.83647524]
[1752137050211,0.1,159.2,159.19,94.5215]
[1752137050401,0.1,159.2,159.19,88.83647524]
[1752137051029,0.1,159.2,159.19,94.5215]
[1752137052918,0.1,159.2,159.19,56.61647524]
[1752137053118,0.1,159.2,159.19,88.83647524]
[1752137053524,0.1,159.2,159.19,94.5215]
[1752137053719,0.1,159.2,159.19,88.83647524]
[1752137053921,0.1,159.2,159.19,83.15145048]
[1752137054132,0.1,159.2,159.19,88.83647524]
[1752137055938,0.1,159.2,159.19,94.5215]
[1752137057516,0.1,159.2,159.19,88.83647524]
[1752137058137,0.1,159.25,159.23,26.0]
[1752137058434,0.1,159.25,159.24,56.55467362]
[1752137059428,0.1,159.25,159.24,50.86964886]
[1752137059627,0.1,159.25,159.24,56.55467362]
[1752137060435,0.1,159.25,159.24,62.8345028]
[1752137060637,0.1,159.25,159.24,50.86964886]
[1752137060934,0.1,159.25,159.24,62.8345028]
[1752137061638,0.1,159.25,159.24,37.90502476]
[1752137062020,0.1,159.25,159.24,62.8345028]
[1752137062734,0.1,159.25,159.24,30.6145028]
[1752137062938,0.1,159.25,159.24,62.8145028]
[1752137063239,0.1,159.25,159.24,151.5145028]
[1752137064223,0.1,159.25,159.24,145.23467362]
[1752137064433,0.1,159.25,159.24,126.58502476]
[1752137066130,0.1,159.25,159.24,132.86485394]
[1752137066448,0.1,159.25,159.24,151.5145028]
[1752137066648,0.1,159.25,159.24,145.82947804]
[1752137066834,0.1,159.25,159.24,151.5145028]
[1752137068745,0.1,159.25,159.24,145.23467362]
[1752137069348,0.1,159.25,159.24,151.5145028]
[1752137071842,1.6013,159.33,159.25,18.64964886]
[1752137072045,1.6013,159.33,159.32,5.68502476]
[1752137074852,0.11112219,159.35,159.34,37.86502476]
[1752137076252,0.11112219,159.35,159.34,32.18]
[1752137076437,0.11112219,159.35,159.34,37.86502476]
[1752137076640,0.11112219,159.35,159.34,32.18]
[1752137076836,0.17112219,159.35,159.34,37.86502476]
[1752137077151,0.17112219,159.35,159.34,32.18]
[1752137077347,0.17112219,159.35,159.34,37.86502476]
[1752137077552,0.17112219,159.35,159.34,32.18]
[1752137077749,0.17112219,159.35,159.34,37.86502476]
[1752137078150,0.17112219,159.35,159.34,32.18]
[1752137078954,6.44661638,159.35,159.34,32.18]
[1752137080760,6.44661638,159.35,159.33,32.18]
[1752137081264,5.68502476,159.34,159.32,32.18]
[1752137081456,6.44661638,159.35,159.32,32.18]
[1752137081457,12.13164114,159.35,159.32,32.18]
[1752137081656,6.44661638,159.35,159.32,37.86502476]
[1752137082060,12.13164114,159.35,159.32,32.18]
[1752137082258,12.13164114,159.35,159.31,120.88]
[1752137082463,12.13164114,159.35,159.31,88.7]
[1752137082654,12.13164114,159.35,159.31,120.88]
[1752137082854,6.44661638,159.35,159.31,120.88]
[1752137083166,12.13164114,159.35,159.31,120.88]
[1752137083650,12.13164114,159.35,159.31,126.56502476]
[1752137084061,12.13164114,159.35,159.31,37.86502476]
[1752137084766,6.44661638,159.35,159.31,37.86502476]
[1752137085143,6.44661638,159.35,159.31,5.68502476]
[1752137085344,12.13164114,159.35,159.32,32.18]
[1752137086081,6.44661638,159.35,159.32,32.18]
[1752137086945,27.82037662,159.35,159.32,32.18]
[1752137087270,5.82718633,159.34,159.29,31.68502476]
[1752137087468,5.82718633,159.34,159.3,32.18]
[1752137087852,5.68502476,159.33,159.29,5.68502476]
[1752137088044,5.68502476,159.32,159.27,5.68502476]
[1752137088244,5.68502476,159.31,159.28,32.18]
[1752137089046,6.2774639,159.3,159.28,32.18]
[1752137090573,6.2772217,159.31,159.28,37.86502476]
[1752137091075,6.27672691,159.32,159.29,5.68502476]
[1752137091476,6.27672691,159.32,159.3,37.86502476]
[1752137091976,7.88870036,159.33,159.3,37.86502476]
[1752137092181,7.88870036,159.33,159.3,32.18]
[1752137094164,13.57372512,159.33,159.3,32.18]
[1752137095549,7.88870036,159.33,159.3,32.18]
[1752137095750,13.57372512,159.33,159.3,32.18]
[1752137097262,7.88870036,159.33,159.3,32.18]
[1752137098073,7.88870036,159.33,159.3,37.86502476]
[1752137098274,6.27597376,159.34,159.3,37.86502476]
[1752137098466,6.27597376,159.34,159.31,5.68502476]
[1752137099057,6.44675369,159.35,159.31,5.68502476]
[1752137101853,12.13177845,159.35,159.3,37.89502476]
[1752137102257,5.82718633,159.34,159.3,32.21]